Cogmind - Beta 12 X1 @@@ ROGUE MODE // 2022.08.07 @ 18:55:48 Player: MTF Result: Destroyed by NK-0LA with NK-0LA's Tesla Doomcannon Performance ------------- Evolutions (1) 500 Regions Visited (6) 1200 Robots Destroyed (85) 425 Value Destroyed (1804) 1804 Prototype IDs (27) 540 Alien Tech Used (0) 0 Bonus (365) 365 TOTAL SCORE: 4834 Bonus ------- High Alert Combat Kills 65 Aligned with FarCom 300 Cogmind --------- Core Integrity 0/400 Matter 156/300 Energy 81/100 System Corruption 29% Temperature Cool (0) Movement Flying (37) Location -8/Mines Parts ------- > --- POWER (1) -------- (None) > --- PROPULSION (3) --- Improved Flight Unit Improved Flight Unit > --- UTILITY (3) ------ (None) > --- WEAPON (2) ------- Maul > --- INVENTORY (5) ---- Improved Flight Unit Improved Flight Unit Improved Flight Unit Medium Storage Unit Grenade Launcher Peak State ------------ > --- POWER ------------ Cooled Ion Engine > --- PROPULSION ------- Light Treads Light Treads Improved Flight Unit > --- UTILITY ---------- High-capacity Storage Unit Machine Analyzer High-powered Tractor Beam > --- WEAPON ----------- Improved Assault Rifle Improved Assault Rifle > --- INVENTORY -------- Cooled Ion Engine Light Treads Improved Flight Unit Improved Flight Unit Improved Flight Unit Huge Storage Unit Huge Storage Unit Signal Interpreter Transport Network Coupler Heavy EM Pulse Gun EM Shotgun Light Assault Rifle Light Assault Rifle Light Assault Rifle Light Assault Rifle Heavy Assault Rifle Light Cannon Mining Laser Maul Signal Generator [Rating: 23] Favorites ----------- Power Improved Ion Engine Engine Improved Ion Engine Propulsion Light Treads Treads Light Treads Leg Aluminum Leg Flight Unit Improved Flight Unit Utility Huge Storage Unit Device Seismic Detector Storage Huge Storage Unit Processor Machine Analyzer Protection Medium Armor Plating Weapon Improved Assault Rifle Energy Gun EM Shotgun Ballistic Gun Improved Assault Rifle Launcher Grenade Launcher Impact Weapon Maul Build | -11 -10 -10 -9 -9 -9 -8 ------- Run | Scr Mat Min Mat Min Exi Min Slots Evolved 2 | . . . 2 . . . Power . | . . . . . . . Propulsion 1 | . . . 1 . . . Utility 1 | . . . 1 . . . Weapon . | . . . . . . . Parts Attached 87 | 4 10 18 32 4 2 17 Power 5 | . 2 . 3 . . . Engine 5 | . 2 . 3 . . . Core . | . . . . . . . Reactor . | . . . . . . . Propulsion 23 | 2 . 1 11 2 . 7 Treads 16 | 2 . . 7 2 . 5 Leg 4 | . . 1 3 . . . Wheel . | . . . . . . . Hover . | . . . . . . . Flight 3 | . . . 1 . . 2 Utility 29 | 1 2 9 15 . . 2 Device 14 | 1 . 6 7 . . . Storage 11 | . 2 3 6 . . . Processor 1 | . . . 1 . . . Hackware . | . . . . . . . Protection 3 | . . . 1 . . 2 Artifact . | . . . . . . . Weapon 30 | 1 6 8 3 2 2 8 Energy Gun 7 | . 2 5 . . . . Energy Cannon . | . . . . . . . Ballistic Gun 17 | 1 3 3 3 1 1 5 Ballistic Cannon . | . . . . . . . Launcher 3 | . . . . 1 . 2 Special Weapon . | . . . . . . . Impact Weapon 3 | . 1 . . . 1 1 Slashing Weapon . | . . . . . . . Piercing Weapon . | . . . . . . . Special Melee Weapon . | . . . . . . . Unidentified Prototypes 3 | . . . 3 . . . Corrupted Parts 1 | . . 1 . . . . System Corruption 1 | . . 1 . . . . Parts Lost 25 | . . 2 5 . . 18 Power 2 | . . . 1 . . 1 Propulsion 11 | . . 1 3 . . 7 Utility 5 | . . . 1 . . 4 Weapon 7 | . . 1 . . . 6 Highest Loss Streak 17 | . . 1 4 . . 17 To Critical Strikes . | . . . . . . . Average Slot Usage (%) 99 | . 99 99 99 100 100 80 Engine 12 | . 13 14 11 11 11 8 Treads 28 | . 28 26 23 33 33 23 Leg 2 | . . 1 8 . . . Device 10 | . 14 12 7 11 11 5 Storage 12 | . 14 15 11 11 11 8 Processor 1 | . . . 8 . . . Protection 4 | . . . 6 11 11 6 Energy Gun 4 | . 8 15 . . . . Ballistic Gun 19 | . 19 12 21 21 21 18 Naked Turns . | . . . . . . . Heaviest Build 103 | 12 94 54 103 103 103 103 Greatest Support 60 | 40 40 40 60 60 60 60 Greatest Overweight (x) 5 | . 4 2 5 1 1 1 Average Overweight (x) 1 | . 1 1 1 1 1 . Largest Inventory Capacity 25 | 8 25 25 25 25 25 25 Average Capacity 22 | 8 20 20 23 25 25 20 Most Carried 25 | 6 20 20 25 25 25 25 Average Carried 19 | 4 12 19 22 24 22 18 Final Capacity 25 | 8 20 20 25 25 25 5 Final Carried 25 | 4 20 19 24 25 25 5 Class Distribution -------------------- 90% | Mutant 9% | Scavenger-Mutant Dominant Class ---------------- Mutant | -10/Materials Mutant | -10/Mines Mutant | -9/Materials Mutant | -9/Mines Mutant | -9/Exiles Mutant | -8/Mines Resources | -11 -10 -10 -9 -9 -9 -8 ----------- Run | Scr Mat Min Mat Min Exi Min Matter Collected 1668 | 245 155 180 908 76 20 84 Remotely 547 | . . . 547 . . . Salvage Created 2793 | 64 500 446 1721 25 . 37 Parts 181 | 5 24 21 122 5 . 4 Haulers Intercepted 8 | . 2 . 6 . . . Recyclers Shooed 2 | 1 . . 1 . . . Parts Field Recycled . | . . . . . . . Retrieved Matter . | . . . . . . . Parts Self-Destructed . | . . . . . . . Prevented . | . . . . . . . Kills | -11 -10 -10 -9 -9 -9 -8 ------- Run | Scr Mat Min Mat Min Exi Min Combat Hostiles Destroyed 51 | . 11 8 25 3 . 4 Guns 43 | . 10 6 25 1 . 1 AOE 7 | . . 2 . 2 . 3 Classes Destroyed 12 | 2 5 2 3 . . . Worker 4 | . . 1 3 . . . Builder 3 | . . . 3 . . . Tunneler 2 | 1 . 1 . . . . Hauler 8 | . 2 . 6 . . . Recycler 5 | 1 . 1 3 . . . Mechanic 1 | . . 1 . . . . Operator 4 | . 1 . 3 . . . Watcher 7 | . 3 . 4 . . . Swarmer 19 | . 6 2 4 3 . 4 Grunt 24 | . 5 6 13 . . . Duelist 1 | . . . 1 . . . Sentry 7 | . . . 7 . . . Best Kill Streak 11 | 2 3 3 11 3 . 4 Combat Bots Only 7 | . 3 3 7 3 . 4 Max Kills in Single Turn 3 | 1 1 1 3 2 . 3 Gunslinging 1 | . . . 1 . . . Exploded 3 | . . 1 . 2 . 3 Melee . | . . . . . . . Uniques/NPCs Destroyed . | . . . . . . . Combat | -11 -10 -10 -9 -9 -9 -8 -------- Run | Scr Mat Min Mat Min Exi Min Damage Taken 3960 | . 427 258 1023 14 . 2238 Core 588 | . 132 50 121 . . 285 Absorbed by Shields 112 | . . . . 6 . 106 Core Remaining (%) 63 | 100 . 27 . . . . Volleys Fired 225 | 5 64 28 103 2 1 22 Largest 2 | 2 2 2 2 2 1 2 Hottest 90 | 70 90 90 46 46 23 46 Shots Fired 444 | 10 128 53 206 3 1 43 Gun 442 | 10 128 53 206 2 1 42 Cannon . | . . . . . . . Launcher 2 | . . . . 1 . 1 Special . | . . . . . . . Kinetic 355 | 5 77 22 206 2 1 42 Thermal 44 | 5 39 . . . . . Explosive 2 | . . . . 1 . 1 Electromagnetic 43 | . 12 31 . . . . Robot Hit Streak 16 | 3 15 10 16 5 . 8 Robot Miss Streak 6 | 1 3 5 6 . . 2 Penetration Max . | . . . . . . . Secondary Targets 10 | . 2 . 8 . . . Max Gunslinging Chain 1 | . 1 . 1 . . . Shots Hit Robots 309 | 6 88 41 141 1 . 32 Core Hits 130 | 3 28 26 64 3 . 6 Critical Kills 1 | . 1 . . . . . Critical Parts Destroyed 3 | . 2 . 1 . . . Critical Strikes 8 | . 7 . 1 . . . Burn 4 | . 4 . . . . . Destroy 4 | . 3 . 1 . . . Melee Attacks 5 | . 1 . . . 3 1 Impact 5 | . 1 . . . 3 1 Slashing . | . . . . . . . Piercing . | . . . . . . . Sneak Attacks . | . . . . . . . Combat Hostiles . | . . . . . . . Follow-up Attacks . | . . . . . . . Damage Inflicted 5026 | 57 950 721 2540 102 . 656 Guns 4187 | 57 942 501 2233 19 . 435 Cannons . | . . . . . . . Explosions 740 | . . 216 281 80 . 163 Melee 58 | . . . . . . 58 Ramming 41 | . 8 4 26 3 . . Kinetic 3281 | 33 423 138 2233 19 . 435 Thermal 879 | 24 358 216 281 . . . Explosive 243 | . . . . 80 . 163 Electromagnetic 524 | . 161 363 . . . . Impact 58 | . . . . . . 58 Slashing . | . . . . . . . Piercing . | . . . . . . . Highest Corruption 29 | . . 1 . . . 29 Average Corruption 18 | . . 1 . . . 19 Corruption Purged . | . . . . . . . Corruption Blocked . | . . . . . . . Effects 5 | . . . . . . 5 Message Errors 1 | . . . . . . 1 Matter Fused 1 | . . . . . . 1 Heat Flow Errors 1 | . . . . . . 1 Data Loss (minor) 1 | . . . . . . 1 Data Loss (major) 1 | . . . . . . 1 Overload Shots . | . . . . . . . Overflow Damage 209 | . . 10 171 . . 28 Projectiles . | . . . . . . . Explosions 209 | . . 10 171 . . 28 Melee . | . . . . . . . Knockbacks 1 | . . . 1 . . . Impact 1 | . . . 1 . . . Kinetic . | . . . . . . . Secondary . | . . . . . . . Self-Inflicted Damage 58 | . . 34 . . . 24 Shots 2 | . . 1 . . . 1 Rammed 14 | . 5 3 5 1 . . Targets Rammed 14 | . 5 3 5 1 . . Kicked . | . . . . . . . Crushed . | . . . . . . . Highest Temperature 246 | 90 246 177 14 . . 206 Average Temperature 51 | 44 55 50 3 . . 120 Received Heat Transfer 651 | . 102 105 444 . . . Siege Activations . | . . . . . . . Robots Corrupted 1 | . 1 . . . . . Combat Hostiles 1 | . 1 . . . . . Parts Fried 5 | . . 5 . . . . Impact Corruptions . | . . . . . . . Robots Melted . | . . . . . . . Combat Hostiles . | . . . . . . . Parts Melted 4 | . 4 . . . . . Heat Transferred 1869 | 74 1295 350 150 . . . Parts Sabotaged . | . . . . . . . Parts Stolen . | . . . . . . . Parts Stripped . | . . . . . . . Power Chain Reactions 3 | . . 3 . . . . Missiles Intercepted . | . . . . . . . Alert | -11 -10 -10 -9 -9 -9 -8 ------- Run | Scr Mat Min Mat Min Exi Min Peak Influence 739 | 10 275 161 739 171 . 110 Initial 171 | . 6 . 62 171 . . Average 157 | 7 69 32 375 118 . 62 Maximum Alert Level 3 | . 1 . 3 . . . Low Security (%) 78 | 100 95 100 31 100 . 100 Level 1 3 | . 4 . 5 . . . Level 2 16 | . . . 56 . . . Level 3 2 | . . . 7 . . . Level 4 . | . . . . . . . Level 5 . | . . . . . . . High Security . | . . . . . . . Max Security . | . . . . . . . Squads Dispatched 8 | . 3 1 4 . . . Investigation 2 | . 2 . . . . . Extermination . | . . . . . . . Reinforcement 5 | . 1 . 4 . . . Assault 1 | . . 1 . . . . Garrison . | . . . . . . . Intercept . | . . . . . . . Searches Triggered . | . . . . . . . Construction Impeded . | . . . . . . . Haulers Reinforced . | . . . . . . . Active Scanning Responses . | . . . . . . . Cargo Convoy Interrupts . | . . . . . . . Stealth | -11 -10 -10 -9 -9 -9 -8 --------- Run | Scr Mat Min Mat Min Exi Min Distress Signals 6 | . . . 6 . . . Communications Jammed . | . . . . . . . Distress Signals . | . . . . . . . Times Spotted 92 | . 24 15 39 4 1 9 Peak Tracking Total 9 | . 3 4 7 3 9 5 Tactical Retreats 3 | . 1 1 1 . . . Traps | -11 -10 -10 -9 -9 -9 -8 ------- Run | Scr Mat Min Mat Min Exi Min Traps Triggered . | . . . . . . . Indirectly . | . . . . . . . Trap Hack Attempts . | . . . . . . . Triggered . | . . . . . . . Disarmed . | . . . . . . . Reprogrammed . | . . . . . . . Reused . | . . . . . . . Traps Extracted . | . . . . . . . Installed . | . . . . . . . Triggered . | . . . . . . . Machines | -11 -10 -10 -9 -9 -9 -8 ---------- Run | Scr Mat Min Mat Min Exi Min Machines Disabled 10 | . . . 8 . 1 1 Max in Single Turn 5 | . . . 5 . 1 1 Machines Sabotaged . | . . . . . . . Garrisons Compromised . | . . . . . . . Overloaded Fab Kills . | . . . . . . . Hacking | -11 -10 -10 -9 -9 -9 -8 --------- Run | Scr Mat Min Mat Min Exi Min Machines Accessed 16 | . 10 . 4 . 2 . Terminals 10 | . 7 . 3 . . . Fabricators . | . . . . . . . Repair Stations 1 | . 1 . . . . . Recycling Units 3 | . 2 . 1 . . . Scanalyzers . | . . . . . . . Garrison Access . | . . . . . . . Total Hacks 38 | . 26 . 10 . 2 . Successful 19 | . 14 . 3 . 2 . Failed 18 | . 11 . 7 . . . Catastrophic . | . . . . . . . Database Lockouts 1 | . 1 . . . . . Manual 19 | . 15 . 3 . 1 . Terminals 27 | . 19 . 8 . . . Fabricators . | . . . . . . . Repair Stations 4 | . 4 . . . . . Recycling Units 5 | . 3 . 2 . . . Scanalyzers . | . . . . . . . Garrison Access . | . . . . . . . Terminal Hacks 16 | . 11 . 3 . 2 . Record 2 | . 1 . . . 1 . Robot Schematic 1 | . 1 . . . . . Robot Analysis 5 | . 5 . . . . . Prototype ID Bank 1 | . . . 1 . . . Terminal Index 1 | . 1 . . . . . Unreport Threat 2 | . 1 . 1 . . . Hauler Manifests 2 | . 1 . 1 . . . Zone Layout 1 | . 1 . . . . . EX-Prototype ID Bank 1 | . . . . . 1 . Fabricator Hacks . | . . . . . . . Repair Station Hacks 1 | . 1 . . . . . Scan Component 1 | . 1 . . . . . Recycling Unit Hacks . | . . . . . . . Scanalyzer . | . . . . . . . Garrison Access Hacks . | . . . . . . . Unauthorized Hacks 2 | . 2 . . . . . Terminals . | . . . . . . . Fabricators . | . . . . . . . Repair Stations . | . . . . . . . Recycling Units 2 | . 2 . . . . . Tunnel 2 | . 2 . . . . . Scanalyzers . | . . . . . . . Garrison Access . | . . . . . . . Data Cores Recovered . | . . . . . . . Used . | . . . . . . . Hacking Detections 11 | . 7 . 4 . . . Full Trace Events . | . . . . . . . Feedback Events . | . . . . . . . Feedback Blocked . | . . . . . . . Robot Schematics Acquired 1 | . 1 . . . . . Robots Built . | . . . . . . . Authchips . | . . . . . . . Time . | . . . . . . . Total Robot Build Rating . | . . . . . . . Part Schematics Acquired . | . . . . . . . Parts Built . | . . . . . . . Authchips . | . . . . . . . Time . | . . . . . . . Total Part Build Rating . | . . . . . . . Parts Repaired . | . . . . . . . Time . | . . . . . . . Parts Recycled . | . . . . . . . Recycled Matter . | . . . . . . . Retrieved Matter . | . . . . . . . Retrieved Components . | . . . . . . . Parts Scanalyzed . | . . . . . . . Part Schematics Acquired . | . . . . . . . Parts Damaged . | . . . . . . . Bothacking | -11 -10 -10 -9 -9 -9 -8 ------------ Run | Scr Mat Min Mat Min Exi Min Used RIF Installer . | . . . . . . . Robots Hacked . | . . . . . . . Non-combat . | . . . . . . . Combat . | . . . . . . . Robot Hacks Applied . | . . . . . . . Relay Couplers Released . | . . . . . . . Fabnet Peak Effective % . | . . . . . . . Robots Rewired . | . . . . . . . Allies Hacked . | . . . . . . . Hacks Repelled . | . . . . . . . Allies | -11 -10 -10 -9 -9 -9 -8 -------- Run | Scr Mat Min Mat Min Exi Min Total Allies 2 | . . 1 . 1 . . Largest Group 1 | . . 1 . 1 1 . Highest-Rated Group 31 | . . 31 . 31 31 . Highest-Rated Ally 31 | . . 31 . 31 31 . Total Orders . | . . . . . . . Ally Attacks 3 | . . 3 . . . . Total Damage 65 | . . 65 . . . . Kills . | . . . . . . . Allies Corrupted . | . . . . . . . Allies Melted . | . . . . . . . Intel | -11 -10 -10 -9 -9 -9 -8 ------- Run | Scr Mat Min Mat Min Exi Min Robot Analysis Total 5 | . 5 . . . . . Derelict Logs Recovered 3 | . . 1 . 2 . . Drone Launches . | . . . . . . . Drone Recoveries . | . . . . . . . Exploration | -11 -10 -10 -9 -9 -9 -8 ------------- Run | Scr Mat Min Mat Min Exi Min Turns Passed 7240 | 65 2104 1095 1753 800 1199 224 Spaces Moved 2403 | 28 659 265 562 327 485 77 Core . | . . . . . . . Treads 2160 | 28 659 265 386 327 485 10 Legs 176 | . . . 176 . . . Wheels . | . . . . . . . Hover . | . . . . . . . Flight 67 | . . . . . . 67 Fastest Speed 37 | 160 160 240 160 240 240 37 Average Speed 248 | 160 279 301 228 240 240 63 Slowest Speed 480 | 160 480 320 470 240 240 240 Overloaded Moves . | . . . . . . . Propulsion Burnouts . | . . . . . . . Robots Hopped 1 | . . . . . . 1 Cave-ins Triggered . | . . . . . . . Exploration Rate (%) 51 | 3 98 58 63 53 70 16 Regions Visited 6 Branch Regions 4 Pre-discovered Areas 4 | . 2 1 . . 1 . Known Exits Taken . | . . . . . . . Unknown Exits Taken 6 | 1 1 1 1 1 1 . Scrap Searched 5 | . . 2 . 3 . . Spaces Dug 4 | . 1 . . . 3 . Terrain Destroyed 56 | . 1 21 20 6 3 5 Melee 4 | . 1 . . . 3 . Projectile . | . . . . . . . AOE 52 | . . 21 20 6 . 5 Terrain Rammed . | . . . . . . . Walls Destroyed . | . . . . . . . Machines Disabled . | . . . . . . . Actions | -11 -10 -10 -9 -9 -9 -8 --------- Run | Scr Mat Min Mat Min Exi Min Total 3223 | 38 797 502 823 338 519 206 Wait 364 | . 33 182 54 2 5 88 Move 2395 | 27 658 264 561 326 484 75 Hop 1 | . . . . . . 1 Pick Up 72 | . 20 4 35 1 12 . Fast Attach 9 | 1 2 . 6 . . . Attach 28 | . 2 3 9 . . 14 Detach 4 | . . . 4 . . . Swap 50 | 3 6 15 17 4 2 3 Drop 56 | 2 6 3 29 2 12 2 Fire 225 | 5 64 28 103 2 1 22 Melee 5 | . 1 . . . 3 1 Ram . | . . . . . . . Kick . | . . . . . . . Crush 14 | . 5 3 5 1 . . Escape Stasis . | . . . . . . . Rewire . | . . . . . . . Trap . | . . . . . . . Miscellaneous . | . . . . . . . Route ------- -11/Scrapyard -10/Materials (discovered 4 exits: *Mat x3 / [*Min]) -10/Mines -9/Materials (discovered 3 exits: [*Mat] / [*Min x2]) -9/Mines (discovered 2 exits: [*Mat] / *Exi) -9/Exiles (discovered 2 exits: [*Min x2]) -8/Mines (discovered 1 exit: [*Mat]) History --------- Turn | Location | Event 21 | -11/Scrapyard | Discovered new exit (range 3) 66 | -11/Scrapyard | Entered Materials 315 | -10/Materials | Build established: Mutant 320 | -10/Materials | Discovered new exit (range 5) 442 | -10/Materials | Discovered new exit (range 11) 585 | -10/Materials | Discovered new exit (range 15) 832 | -10/Materials | Core integrity fell below 50% 1382 | -10/Materials | Discovered new exit (range 6) 1416 | -10/Materials | Central database locked down 2170 | -10/Materials | Entered Mines 2319 | -10/Mines | Found a hidden stash of uninstalled traps 2483 | -10/Mines | Met a Derelict testing a Signal Generator 2495 | -10/Mines | Found Signal Generator 3235 | -10/Mines | Discovered new exit (range 6) 3265 | -10/Mines | Entered Materials 3265 | -9/Materials | Evolved 2 slots: Propulsion x1, Utility x1 3817 | -9/Materials | Destroyed 7 combat bots 3823 | -9/Materials | Lost 4 parts (1p2n1u) 3878 | -9/Materials | Destroyed 7 combat bots 3894 | -9/Materials | Discovered new exit (range 16) 3977 | -9/Materials | Discovered new exit (range 14) 4251 | -9/Materials | Build established: Scavenger-Mutant 4329 | -9/Materials | Discovered new exit (range 16) 4881 | -9/Materials | Build established: Mutant 5018 | -9/Materials | Entered Mines 5023 | -9/Mines | Joined a pair of Derelicts in attacking an 0b10 outpost 5087 | -9/Mines | Discovered new exit (range 9) 5595 | -9/Mines | Received a Mining Laser from a helpful Derelict 5707 | -9/Mines | Learned 2 Materials zone layouts 5763 | -9/Mines | Deemed a non-threat by the Exiles lab entrance 5763 | -9/Mines | Discovered new exit (range 5) 5818 | -9/Mines | Entered Exiles 5818 | -9/Exiles | Accompanied by 1 ally 5850 | -9/Exiles | Discovered new exit (range 15) 5878 | -9/Exiles | Met 8R-AWN 5912 | -9/Exiles | Met EX-HEX 6030 | -9/Exiles | Met EX-DEC 6075 | -9/Exiles | Learned location of Zion (-7) 6229 | -9/Exiles | Discovered new exit (range 12) 6472 | -9/Exiles | Met EX-BIN 6506 | -9/Exiles | Aligned with FarCom system 6508 | -9/Exiles | Given EX-Vault access code 6563 | -9/Exiles | Opened EX-Vault 6616 | -9/Exiles | Warned to stay clear of 0b10 Research branches 6980 | -9/Exiles | Attacked by the Exiles 7017 | -9/Exiles | Entered Mines 7117 | -8/Mines | NK-0LA came to Exiles' defense 7151 | -8/Mines | System corruption reached 10% 7153 | -8/Mines | Core integrity fell below 50% 7217 | -8/Mines | Discovered new exit (range 9) 7224 | -8/Mines | Lost 17 parts (1p7n4u5w) 7240 | -8/Mines | Core integrity fell below 20% 7241 | -8/Mines | Destroyed by NK-0LA with NK-0LA's Tesla Doomcannon Last Messages --------------- 07148_ Lgt. Armor Plating destroyed. 07150_ Med. Armor Plating destroyed. 07155_ EEW 9/R8NIWYUWZ2ZD7ACB: TRA 07156_ Imp. Assault Rifle destroyed. 07164_ Lgt. Treads destroyed. 07174_ Hvy. Assault Rifle destroyed. 07184_ Cld. Ion Engine destroyed. 07187_ Lgt. Treads destroyed. 07193_ Hvy. Assault Rifle destroyed. 07194_ Dropped Huge Storage Unit. 07195_ Dropped Lgt. Treads. 07197_ System corrupted: Component data lost. 07202_ Acquired 30 matter. 07203_ Acquired 23 matter. 07215_ System corrupted: Heat flow error (+226). 07217_ EXIT=FOUND 07230_ System corrupted: Substantial component data lost. 07237_ S-10 Pest IFF system glitched. 07238_ Acquired 21 matter. 07239_ Hvy. Assault Rifle destroyed. Map ----- +----------------------------------------------------+ | ??????????????????????????????????????? | | ??????????????????????????????????????? | | ??????????????????????????????????????? | | ??????????????????????????????????????? | | ??????????????????????????????????????? | | ??????????????????????????????????????? | | ??????????????????????????????????????? | | ??????????????????????????????????????? | | ??????????????????????????????????????? | | ??????????????????????????????????????? | | ??????????????????????????????????????? | | ??????????????????????????????????????? | | ??????????????????????????????????????? | | ??????????????????????????????????????? | | ??????????????????????????????????????? | | ??????????????????????????????????????? | | ??????????????????????????????????????? | | ??????????????????????????????????????? | | ??????????????????????????????????????? | | ??????????????????????????????????????? | | ?????????????###########??????????????? | | ?????????????# ???????? | | ?????????????# #########??????????????? | | ????????????## ##?????????????????????? | | ????????????#; ;#?????????????????????? | | ????????????#;@##?????????????????????? | | ?##?????????#;x;#?????????????????????? | | ?# ????????##s##?????????????????????? | | ?# ###### ##?????????????????????? | | ?# < #?????????????????????? | | ?# ####### #?????????????????????? | | ??? ????????#s#?????????????????????? | | ????# ######### #?????????????????????? | | ????# #?????????????????????? | | ????########### #?????????????????????? | | ??????????????# ##????????????????????? | | ?????????????## ##???????????????????? | | ?????????????# #???????????????????? | | ?????????????# #???????????????????? | | ?????????????# ##???????????????????? | | ????????????## #????????????????????? | | ??????????### #????????????????????? | | ?????????## #????????????????????? | | ?????????# ##????????????????????? | | ?????????## ## #?????????????????????? | | ??????????###?# #?????????????????????? | | ??????????????# #?????????????????????? | | ??????????????# #?????????????????????? | | ?????#######??# #?????????????????????? | | ????## #??# #?????????????????????? | +----------------------------------------------------+ Best States ------------- Heat Dissipation 28 Energy Generation 23 Energy Capacity 280 Matter Stores 300 Matter Capacity 300 Sight Range 16 Terrain Scan Density 10 Armor Coverage 225 Evasion (%) 62 Recoil Reduction 3 Item Schematics ----------------- None Robot Schematics ------------------ O-16 Technician | -10/Materials | Hacked Fabricated ------------ Nothing Alien Tech Used ----------------- None Achievements -------------- None Challenges ------------ None Game ------ Seed ProcessingElectronNanosword Manual? 0 Play Time 01:16:00 Cumulative 1250.5 hours Start 2022.08.07 @ 17:05:16 End 2022.08.07 @ 18:55:48 Sessions 1 Manual Loads 0 Difficulty Rogue Special Mode None Game No. 386 Rogue 386 Adventurer 0 Explorer 0 Win Type - Total 71 Types 13/18/13/3/1/2/18/2/1 Lore% 96 Gallery% 96 Achievement% 88 Wizard Run 0 Options --------- ASCII 0 Keyboard 0 Movement Numpad Keybinds 0 Fullscreen 2 Font 24/Smallcaps Map View 76x50 Tactical HUD 1 Map Filters NONE Filters NONE Steam 1 RUN: 8159ba4b-5e71-4f8c-8bb3-58d16db09c22